[Event "Esbjerg Efterår 2024 - Esbjergmesterskabet"]
[Site "Esbjerg, Denmark"]
[Date "2024.10.20"]
[Round "7.1"]
[White "Medhus, Vitus Bondo"]
[Black "Hye, Allan"]
[Result "1-0"]
[TimeControl "1.-3. 20 min + 5 sek, 4.-7. 90 min + 30 sek + 15 min efter 40 træk"]
[WhiteElo "2246"]
[BlackElo "1988"]

1. e4 {[%clk 01:30:53]} {[%emt 00:00:07]} c6 {[%clk 01:29:28]} {[%emt
00:01:33]} 2. d4 {[%clk 01:31:16]} {[%emt 00:00:07]} d5 {[%clk 01:29:51]}
{[%emt 00:00:07]} 3. f3 {[%clk 01:31:38]} {[%emt 00:00:07]} dxe4 {[%clk
01:29:45]} {[%emt 00:00:37]} 4. fxe4 {[%clk 01:31:53]} {[%emt 00:00:16]} e5
{[%clk 01:29:55]} {[%emt 00:00:19]} 5. Nf3 {[%clk 01:32:16]} {[%emt 00:00:06]}
exd4 {[%clk 01:29:56]} {[%emt 00:00:30]} 6. Bc4 {[%clk 01:32:23]} {[%emt
00:00:23]} Nf6 {[%clk 01:28:16]} {[%emt 00:02:10]} 7. O-O {[%clk 01:32:06]}
{[%emt 00:00:47]} Nbd7 {[%clk 01:27:12]} {[%emt 00:01:35]} 8. c3 {[%clk
01:21:17]} {[%emt 00:11:18]} b5 {[%clk 01:13:36]} {[%emt 00:14:06]} 9. Bb3
{[%clk 01:18:09]} {[%emt 00:03:39]} dxc3 {[%clk 01:09:24]} {[%emt 00:04:42]} 10.
Kh1 {[%clk 01:07:39]} {[%emt 00:10:59]} Nc5 {[%clk 00:54:10]} {[%emt 00:15:44]}
11. Bxf7+ {[%clk 01:05:35]} {[%emt 00:02:34]} Ke7 {[%clk 00:54:14]} {[%emt
00:00:25]} 12. Qxd8+ {[%clk 01:02:33]} {[%emt 00:03:32]} Kxd8 {[%clk 00:54:38]}
{[%emt 00:00:07]} 13. Nxc3 {[%clk 01:02:17]} {[%emt 00:00:46]} b4 {[%clk
00:49:40]} {[%emt 00:05:28]} 14. e5 {[%clk 01:01:40]} {[%emt 00:01:07]} bxc3
{[%clk 00:30:43]} {[%emt 00:19:27]} 15. exf6 {[%clk 01:02:03]} {[%emt
00:00:07]} gxf6 {[%clk 00:27:11]} {[%emt 00:04:02]} 16. bxc3 {[%clk 00:59:07]}
{[%emt 00:03:26]} Ne4 {[%clk 00:18:53]} {[%emt 00:08:48]} 17. Nd4 {[%clk
00:55:34]} {[%emt 00:04:03]} Bc5 {[%clk 00:12:03]} {[%emt 00:07:20]} 18. Nxc6+
{[%clk 00:55:00]} {[%emt 00:01:05]} Kd7 {[%clk 00:11:50]} {[%emt 00:00:42]} 19.
Nd4 {[%clk 00:53:08]} {[%emt 00:02:22]} Ba6 {[%clk 00:08:21]} {[%emt 00:04:00]}
20. Re1 {[%clk 00:48:45]} {[%emt 00:04:52]} Nf2+ {[%clk 00:04:54]} {[%emt
00:03:57]} 21. Kg1 {[%clk 00:49:06]} {[%emt 00:00:09]} Nd3 {[%clk 00:05:04]}
{[%emt 00:00:20]} 22. Rd1 {[%clk 00:47:08]} {[%emt 00:02:29]} Raf8 {[%clk
00:03:31]} {[%emt 00:02:04]} 23. Be6+ {[%clk 00:44:29]} {[%emt 00:03:08]} Ke7
{[%clk 00:02:36]} {[%emt 00:01:26]} 24. Bf5 {[%clk 00:44:27]} {[%emt 00:00:32]}
Nxc1 {[%clk 00:01:45]} {[%emt 00:01:21]} 25. Raxc1 {[%clk 00:44:42]} {[%emt
00:00:16]} Bc4 {[%clk 00:01:58]} {[%emt 00:00:17]} 26. Kh1 {[%clk 00:44:29]}
{[%emt 00:00:43]} Bd5 {[%clk 00:01:17]} {[%emt 00:01:11]} 27. Nb3 {[%clk
00:44:05]} {[%emt 00:00:55]} Ba3 {[%clk 00:00:35]} {[%emt 00:01:11]} 28. Rc2
{[%clk 00:42:11]} {[%emt 00:02:23]} Rd8 {[%clk 00:00:41]} {[%emt 00:00:26]} 29.
Re2+ {[%clk 00:42:33]} {[%emt 00:00:08]} Kf7 {[%clk 00:00:32]} {[%emt
00:00:39]} 30. Rxd5 {[%clk 00:42:43]} {[%emt 00:00:20]} 1-0

[Event "Esbjerg Efterår 2024 - Esbjergmesterskabet"]
[Site "Esbjerg, Denmark"]
[Date "2024.10.20"]
[Round "7.2"]
[White "Perets, Dmytro"]
[Black "Løftgaard, Mikkel Vinh"]
[Result "1-0"]
[TimeControl "1.-3. 20 min + 5 sek, 4.-7. 90 min + 30 sek + 15 min efter 40 træk"]
[WhiteElo "2152"]
[BlackElo "2209"]

1. e4 {[%clk 01:30:58]} Nc6 {[%clk 01:30:53]} {[%emt 00:00:08]} 2. d4 {[%clk
01:30:43]} {[%emt 00:00:45]} d5 {[%clk 01:31:17]} {[%emt 00:00:06]} 3. e5
{[%clk 01:30:42]} {[%emt 00:00:31]} f6 {[%clk 01:30:01]} {[%emt 00:01:46]} 4.
f4 {[%clk 01:26:39]} {[%emt 00:04:33]} Bf5 {[%clk 01:30:16]} {[%emt 00:00:15]}
5. c3 {[%clk 01:26:48]} {[%emt 00:00:22]} e6 {[%clk 01:29:55]} {[%emt
00:00:52]} 6. Be2 {[%clk 01:24:44]} {[%emt 00:02:34]} g5 {[%clk 01:29:40]}
{[%emt 00:00:44]} 7. Bh5+ {[%clk 01:25:01]} {[%emt 00:00:14]} Kd7 {[%clk
01:28:12]} {[%emt 00:01:57]} 8. fxg5 {[%clk 01:22:41]} {[%emt 00:02:50]} fxe5
{[%clk 01:28:30]} {[%emt 00:00:12]} 9. Nf3 {[%clk 01:22:49]} {[%emt 00:00:22]}
Bd6 {[%clk 01:16:16]} {[%emt 00:12:45]} 10. dxe5 {[%clk 01:18:30]} {[%emt
00:04:48]} Nxe5 {[%clk 01:15:45]} {[%emt 00:01:00]} 11. Nxe5+ {[%clk 01:18:50]}
{[%emt 00:00:10]} Bxe5 {[%clk 01:16:08]} {[%emt 00:00:07]} 12. Qe2 {[%clk
01:18:38]} {[%emt 00:00:42]} Bd6 {[%clk 01:02:41]} {[%emt 00:13:57]} 13. c4
{[%clk 01:16:47]} {[%emt 00:02:21]} Ne7 {[%clk 00:49:30]} {[%emt 00:13:41]} 14.
Nc3 {[%clk 01:14:27]} {[%emt 00:02:51]} c6 {[%clk 00:47:22]} {[%emt 00:02:38]}
15. O-O {[%clk 01:09:03]} {[%emt 00:05:52]} Qb6+ {[%clk 00:44:57]} {[%emt
00:02:56]} 16. Be3 {[%clk 01:07:50]} {[%emt 00:01:43]} Bc5 {[%clk 00:43:48]}
{[%emt 00:01:40]} 17. Bf2 {[%clk 01:06:11]} {[%emt 00:02:10]} Raf8 {[%clk
00:42:04]} {[%emt 00:02:13]} 18. cxd5 {[%clk 01:06:10]} {[%emt 00:00:30]} cxd5
{[%clk 00:36:46]} {[%emt 00:05:50]} 19. Bxc5 {[%clk 01:04:47]} {[%emt
00:01:54]} Qxc5+ {[%clk 00:37:15]} {[%emt 00:00:01]} 20. Kh1 {[%clk 01:04:23]}
{[%emt 00:00:54]} Nc6 {[%clk 00:35:58]} {[%emt 00:01:47]} 21. Rad1 {[%clk
01:00:45]} {[%emt 00:04:07]} Kc7 {[%clk 00:27:17]} {[%emt 00:09:11]} 22. g4
{[%clk 00:59:10]} {[%emt 00:02:04]} Bg6 {[%clk 00:26:11]} {[%emt 00:01:37]} 23.
Qxe6 {[%clk 00:55:30]} {[%emt 00:04:10]} Rxf1+ {[%clk 00:22:07]} {[%emt
00:04:34]} 24. Rxf1 {[%clk 00:53:35]} {[%emt 00:02:25]} Re8 {[%clk 00:22:29]}
{[%emt 00:00:08]} 25. Rf7+ {[%clk 00:52:20]} {[%emt 00:01:46]} Bxf7 {[%clk
00:22:29]} {[%emt 00:00:30]} 26. Qxf7+ {[%clk 00:52:45]} {[%emt 00:00:05]} Re7
{[%clk 00:22:41]} {[%emt 00:00:18]} 27. Nxd5+ {[%clk 00:53:09]} {[%emt
00:00:05]} Kd6 {[%clk 00:22:31]} {[%emt 00:00:39]} 28. Nxe7 {[%clk 00:53:01]}
{[%emt 00:00:38]} Qc1+ {[%clk 00:22:50]} {[%emt 00:00:12]} 29. Kg2 {[%clk
00:53:24]} {[%emt 00:00:07]} Qxb2+ {[%clk 00:23:01]} {[%emt 00:00:19]} 30. Qf2
{[%clk 00:52:43]} {[%emt 00:01:11]} Qxf2+ {[%clk 00:23:29]} {[%emt 00:00:02]}
31. Kxf2 {[%clk 00:53:07]} {[%emt 00:00:06]} Nxe7 {[%clk 00:23:43]} {[%emt
00:00:16]} 32. Bf7 {[%clk 00:52:00]} {[%emt 00:01:37]} b5 {[%clk 00:16:54]}
{[%emt 00:07:20]} 33. h4 {[%clk 00:50:46]} {[%emt 00:01:43]} Nc6 {[%clk
00:16:39]} {[%emt 00:00:45]} 34. Kg3 {[%clk 00:49:47]} {[%emt 00:01:29]} Ke7
{[%clk 00:16:39]} {[%emt 00:00:30]} 35. Bg8 {[%clk 00:49:54]} {[%emt 00:00:21]}
a5 {[%clk 00:15:05]} {[%emt 00:02:06]} 36. h5 {[%clk 00:49:57]} {[%emt
00:00:27]} b4 {[%clk 00:14:51]} {[%emt 00:00:44]} 37. h6 {[%clk 00:50:03]}
{[%emt 00:00:24]} Ne5 {[%clk 00:14:11]} {[%emt 00:01:11]} 38. Bxh7 {[%clk
00:49:49]} {[%emt 00:00:44]} Nf7 {[%clk 00:13:59]} {[%emt 00:00:41]} 39. Kf4
{[%clk 00:49:47]} {[%emt 00:00:31]} a4 {[%clk 00:14:21]} {[%emt 00:00:08]} 40.
Bc2 {[%clk 00:49:57]} {[%emt 00:00:21]} b3 {[%clk 00:14:44]} {[%emt 00:00:07]}
41. axb3 {[%clk 00:50:17]} {[%emt 00:00:10]} a3 {[%clk 00:15:12]} {[%emt
00:00:02]} 42. Bb1 {[%clk 00:50:33]} {[%emt 00:00:14]} Nh8 {[%clk 00:14:53]}
{[%emt 00:00:49]} 43. b4 {[%clk 00:50:42]} {[%emt 00:00:21]} Ng6+ {[%clk
00:15:05]} {[%emt 00:00:18]} 44. Kf5 {[%clk 00:50:59]} {[%emt 00:00:12]} Nh4+
{[%clk 00:15:24]} {[%emt 00:00:12]} 45. Ke4 {[%clk 00:51:14]} {[%emt 00:00:14]}
Kf7 {[%clk 00:15:37]} {[%emt 00:00:19]} 46. b5 {[%clk 00:51:29]} {[%emt
00:00:16]} Ng6 {[%clk 00:15:59]} {[%emt 00:00:07]} 47. Ba2+ {[%clk 00:51:53]}
{[%emt 00:00:06]} Kf8 {[%clk 00:16:22]} {[%emt 00:00:06]} 48. b6 {[%clk
00:52:15]} {[%emt 00:00:09]} Ne7 {[%clk 00:16:50]} {[%emt 00:00:02]} 49. g6
{[%clk 00:52:35]} {[%emt 00:00:10]} Nxg6 {[%clk 00:17:00]} {[%emt 00:00:20]} 50.
b7 {[%clk 00:53:01]} {[%emt 00:00:05]} 1-0

[Event "Esbjerg Efterår 2024 - Esbjergmesterskabet"]
[Site "Esbjerg, Denmark"]
[Date "2024.10.20"]
[Round "7.3"]
[White "Jacobsen, Mikkel Manosri"]
[Black "Guindy, Esmat Susanne"]
[Result "1/2-1/2"]
[TimeControl "1.-3. 20 min + 5 sek, 4.-7. 90 min + 30 sek + 15 min efter 40 træk"]
[WhiteElo "2350"]
[BlackElo "2025"]

1. c4 {[%clk 01:30:57]} {[%emt 00:00:02]} e6 {[%clk 01:30:35]} {[%emt
00:00:25]} 2. g3 {[%clk 01:31:18]} {[%emt 00:00:09]} d5 {[%clk 01:30:51]}
{[%emt 00:00:14]} 3. Bg2 {[%clk 01:31:44]} {[%emt 00:00:04]} Nf6 {[%clk
01:30:52]} {[%emt 00:00:29]} 4. Nf3 {[%clk 01:32:06]} {[%emt 00:00:07]} Be7
{[%clk 01:27:55]} {[%emt 00:03:27]} 5. O-O {[%clk 01:32:27]} {[%emt 00:00:08]}
O-O {[%clk 01:28:14]} {[%emt 00:00:11]} 6. b3 {[%clk 01:32:53]} {[%emt
00:00:05]} b6 {[%clk 01:26:30]} {[%emt 00:02:15]} 7. d4 {[%clk 01:31:55]}
{[%emt 00:01:27]} c6 {[%clk 01:20:53]} {[%emt 00:06:07]} 8. Nc3 {[%clk
01:32:09]} {[%emt 00:00:15]} Nbd7 {[%clk 01:20:26]} {[%emt 00:00:58]} 9. Bb2
{[%clk 01:32:20]} {[%emt 00:00:18]} Bb7 {[%clk 01:20:10]} {[%emt 00:00:46]} 10.
Qd3 {[%clk 01:27:11]} {[%emt 00:05:39]} c5 {[%clk 01:15:40]} {[%emt 00:05:01]}
11. cxd5 {[%clk 01:26:42]} {[%emt 00:00:59]} cxd4 {[%clk 01:15:03]} {[%emt
00:01:07]} 12. Qxd4 {[%clk 01:08:27]} {[%emt 00:18:43]} Bc5 {[%clk 01:13:24]}
{[%emt 00:02:10]} 13. Qa4 {[%clk 01:08:16]} {[%emt 00:00:42]} Nxd5 {[%clk
01:09:53]} {[%emt 00:04:01]} 14. Nxd5 {[%clk 01:08:39]} {[%emt 00:00:06]} exd5
{[%clk 01:05:24]} {[%emt 00:04:59]} 15. Rfd1 {[%clk 00:54:30]} {[%emt
00:14:39]} Re8 {[%clk 01:03:47]} {[%emt 00:02:06]} 16. e3 {[%clk 00:54:45]}
{[%emt 00:00:17]} Nf6 {[%clk 01:00:59]} {[%emt 00:03:18]} 17. Ne5 {[%clk
00:51:15]} {[%emt 00:04:00]} Qe7 {[%clk 00:56:49]} {[%emt 00:04:39]} 18. Qh4
{[%clk 00:40:49]} {[%emt 00:10:55]} Rad8 {[%clk 00:52:13]} {[%emt 00:05:08]} 19.
Nd3 {[%clk 00:40:35]} {[%emt 00:00:44]} Ne4 {[%clk 00:49:59]} {[%emt 00:02:43]}
20. Qxe7 {[%clk 00:38:40]} {[%emt 00:02:25]} Bxe7 {[%clk 00:49:20]} {[%emt
00:01:09]} 21. Nf4 {[%clk 00:38:06]} {[%emt 00:01:04]} Bf6 {[%clk 00:48:02]}
{[%emt 00:01:48]} 22. Bxf6 {[%clk 00:38:08]} {[%emt 00:00:28]} Nxf6 {[%clk
00:48:22]} {[%emt 00:00:09]} 23. Rac1 {[%clk 00:36:56]} {[%emt 00:01:43]} Rd7
{[%clk 00:46:22]} {[%emt 00:02:30]} 24. Bh3 {[%clk 00:36:23]} {[%emt 00:01:03]}
Rde7 {[%clk 00:46:13]} {[%emt 00:00:39]} 25. Ne2 {[%clk 00:34:31]} {[%emt
00:02:23]} g5 {[%clk 00:43:54]} {[%emt 00:02:48]} 26. Bf5 {[%clk 00:31:28]}
{[%emt 00:03:33]} g4 {[%clk 00:42:43]} {[%emt 00:01:42]} 27. Rd4 {[%clk
00:28:20]} {[%emt 00:03:38]} h5 {[%clk 00:42:37]} {[%emt 00:00:35]} 28. h3
{[%clk 00:28:42]} {[%emt 00:00:08]} gxh3 {[%clk 00:42:36]} {[%emt 00:00:31]} 29.
Bxh3 {[%clk 00:29:06]} {[%emt 00:00:06]} Kf8 {[%clk 00:40:31]} {[%emt
00:02:35]} 30. Ra4 {[%clk 00:24:38]} {[%emt 00:04:59]} a6 {[%clk 00:39:48]}
{[%emt 00:01:13]} 31. Rb4 {[%clk 00:25:05]} {[%emt 00:00:02]} b5 {[%clk
00:39:48]} {[%emt 00:00:30]} 32. Rf4 {[%clk 00:24:49]} {[%emt 00:00:46]} Ne4
{[%clk 00:39:02]} {[%emt 00:01:15]} 33. Nd4 {[%clk 00:24:52]} {[%emt 00:00:27]}
Ng5 {[%clk 00:38:43]} {[%emt 00:00:48]} 34. Bf5 {[%clk 00:22:28]} {[%emt
00:02:55]} Kg7 {[%clk 00:35:40]} {[%emt 00:03:34]} 35. Kg2 {[%clk 00:22:24]}
{[%emt 00:00:34]} Ne6 {[%clk 00:35:11]} {[%emt 00:00:59]} 36. Rh4 {[%clk
00:21:27]} {[%emt 00:01:27]} Rh8 {[%clk 00:34:31]} {[%emt 00:01:10]} 37. Bd3
{[%clk 00:19:33]} {[%emt 00:02:25]} Nxd4 {[%clk 00:32:21]} {[%emt 00:02:40]} 38.
Rxd4 {[%clk 00:20:00]} {[%emt 00:00:03]} Rh6 {[%clk 00:31:23]} {[%emt
00:01:27]} 39. Kf3 {[%clk 00:16:36]} {[%emt 00:03:55]} Rc6 {[%clk 00:24:56]}
{[%emt 00:06:57]} 40. Rh1 {[%clk 00:16:23]} {[%emt 00:00:42]} Re5 {[%clk
00:22:40]} {[%emt 00:02:46]} 41. Ke2 {[%clk 00:15:24]} {[%emt 00:01:29]} Bc8
{[%clk 00:21:50]} {[%emt 00:01:21]} 42. Kd2 {[%clk 00:13:20]} {[%emt 00:02:34]}
Bg4 {[%clk 00:20:52]} {[%emt 00:01:28]} 43. Rc1 {[%clk 00:07:57]} {[%emt
00:05:53]} Rxc1 {[%clk 00:20:55]} {[%emt 00:00:27]} 44. Kxc1 {[%clk 00:08:26]}
{[%emt 00:00:02]} Bf3 {[%clk 00:20:20]} {[%emt 00:01:04]} 45. Kd2 {[%clk
00:08:51]} {[%emt 00:00:05]} Be4 {[%clk 00:17:28]} {[%emt 00:03:22]} 46. Kc3
{[%clk 00:07:23]} {[%emt 00:01:59]} Re6 {[%clk 00:12:35]} {[%emt 00:05:23]} 47.
Kb4 {[%clk 00:02:54]} {[%emt 00:04:59]} Rf6 {[%clk 00:12:41]} {[%emt 00:00:23]}
48. a4 {[%clk 00:04:48]} {[%emt 00:13:37]} bxa4 {[%clk 00:25:44]} {[%emt
00:02:26]} 49. bxa4 {[%clk 00:05:16]} {[%emt 00:00:02]} Bxd3 {[%clk 00:25:18]}
{[%emt 00:00:56]} 50. Rxd3 {[%clk 00:05:43]} {[%emt 00:00:04]} Rxf2 {[%clk
00:23:27]} {[%emt 00:02:21]} 51. Rxd5 {[%clk 00:06:11]} {[%emt 00:00:03]} Rf3
{[%clk 00:23:06]} {[%emt 00:00:50]} 52. Rxh5 {[%clk 00:04:04]} {[%emt
00:02:37]} Rxg3 {[%clk 00:20:24]} {[%emt 00:03:12]} 53. Re5 {[%clk 00:04:19]}
{[%emt 00:00:15]} Rg6 {[%clk 00:19:42]} {[%emt 00:01:13]} 54. Ka5 {[%clk
00:04:33]} {[%emt 00:00:17]} Rc6 {[%clk 00:19:51]} {[%emt 00:00:20]} 55. e4
{[%clk 00:03:38]} {[%emt 00:01:25]} f6 {[%clk 00:18:51]} {[%emt 00:01:29]} 56.
Re7+ {[%clk 00:03:21]} {[%emt 00:00:47]} Kg6 {[%clk 00:17:46]} {[%emt
00:01:34]} 57. Kb4 {[%clk 00:03:16]} {[%emt 00:00:36]} Kg5 {[%clk 00:16:21]}
{[%emt 00:01:55]} 58. a5 {[%clk 00:02:26]} {[%emt 00:01:20]} Kf4 {[%clk
00:16:28]} {[%emt 00:00:22]} 59. Re8 {[%clk 00:02:49]} {[%emt 00:00:10]} Ke3
{[%clk 00:15:30]} {[%emt 00:01:27]} 60. e5 {[%clk 00:01:59]} {[%emt 00:01:20]}
fxe5 {[%clk 00:15:47]} {[%emt 00:00:13]} 1/2-1/2

[Event "Esbjerg Efterår 2024 - Esbjergmesterskabet"]
[Site "Esbjerg, Denmark"]
[Date "2024.10.20"]
[Round "7.4"]
[White "Paludan, Noah"]
[Black "Rossen, Claus"]
[Result "1/2-1/2"]
[TimeControl "1.-3. 20 min + 5 sek, 4.-7. 90 min + 30 sek + 15 min efter 40 træk"]
[WhiteElo "1979"]
[BlackElo "2072"]

1. e4 {[%clk 01:30:33]} {[%emt 00:00:26]} g6 {[%clk 01:30:48]} {[%emt
00:00:13]} 2. d4 {[%clk 01:29:58]} {[%emt 00:01:05]} Bg7 {[%clk 01:31:10]}
{[%emt 00:00:08]} 3. Nc3 {[%clk 01:29:59]} {[%emt 00:00:27]} d6 {[%clk
01:31:34]} {[%emt 00:00:09]} 4. Nf3 {[%clk 01:29:36]} {[%emt 00:00:51]} Nf6
{[%clk 01:31:45]} {[%emt 00:00:19]} 5. Bg5 {[%clk 01:28:30]} {[%emt 00:01:35]}
Nc6 {[%clk 01:29:17]} {[%emt 00:02:59]} 6. Qd2 {[%clk 01:20:03]} {[%emt
00:08:56]} Bg4 {[%clk 01:27:28]} {[%emt 00:02:20]} 7. Be2 {[%clk 01:12:48]}
{[%emt 00:07:45]} h6 {[%clk 01:24:45]} {[%emt 00:03:12]} 8. Be3 {[%clk
01:10:43]} {[%emt 00:02:35]} Bxf3 {[%clk 01:17:44]} {[%emt 00:07:33]} 9. Bxf3
{[%clk 01:08:08]} {[%emt 00:03:04]} e5 {[%clk 01:18:06]} {[%emt 00:00:09]} 10.
Ne2 {[%clk 01:01:48]} {[%emt 00:06:49]} exd4 {[%clk 01:17:08]} {[%emt
00:01:29]} 11. Nxd4 {[%clk 01:01:47]} {[%emt 00:00:29]} Nxd4 {[%clk 01:16:01]}
{[%emt 00:01:39]} 12. Bxd4 {[%clk 01:01:30]} {[%emt 00:00:46]} O-O {[%clk
01:12:44]} {[%emt 00:03:47]} 13. O-O-O {[%clk 00:54:43]} {[%emt 00:07:18]} Re8
{[%clk 01:06:15]} {[%emt 00:07:00]} 14. Rhe1 {[%clk 00:52:16]} {[%emt
00:02:54]} Rb8 {[%clk 01:03:05]} {[%emt 00:03:43]} 15. e5 {[%clk 00:37:42]}
{[%emt 00:15:03]} 1/2-1/2

[Event "Esbjerg Efterår 2024 - Esbjergmesterskabet"]
[Site "Esbjerg, Denmark"]
[Date "2024.10.20"]
[Round "7.5"]
[White "Hansen, Lars"]
[Black "Jensen, Henrik Tranberg"]
[Result "1-0"]
[TimeControl "1.-3. 20 min + 5 sek, 4.-7. 90 min + 30 sek + 15 min efter 40 træk"]
[WhiteElo "2203"]
[BlackElo "2014"]

1. Nf3 {[%clk 01:28:48]} {[%emt 00:02:11]} g6 {[%clk 01:30:58]} {[%emt
00:00:03]} 2. d4 {[%clk 01:28:50]} {[%emt 00:00:28]} Nf6 {[%clk 01:31:10]}
{[%emt 00:00:17]} 3. c3 {[%clk 01:29:11]} {[%emt 00:00:09]} Bg7 {[%clk
01:31:32]} {[%emt 00:00:08]} 4. Bg5 {[%clk 01:29:36]} {[%emt 00:00:05]} d5
{[%clk 01:31:34]} {[%emt 00:00:29]} 5. e3 {[%clk 01:28:25]} {[%emt 00:01:41]}
O-O {[%clk 01:31:38]} {[%emt 00:00:26]} 6. Nbd2 {[%clk 01:28:51]} {[%emt
00:00:04]} c6 {[%clk 01:31:51]} {[%emt 00:00:16]} 7. Bd3 {[%clk 01:28:37]}
{[%emt 00:00:44]} Nbd7 {[%clk 01:31:59]} {[%emt 00:00:23]} 8. O-O {[%clk
01:28:45]} {[%emt 00:00:22]} Re8 {[%clk 01:30:40]} {[%emt 00:01:48]} 9. Re1
{[%clk 01:21:08]} {[%emt 00:08:07]} e5 {[%clk 01:30:45]} {[%emt 00:00:26]} 10.
e4 {[%clk 01:20:40]} {[%emt 00:00:58]} Qb6 {[%clk 01:28:30]} {[%emt 00:02:45]}
11. h3 {[%clk 00:42:31]} {[%emt 00:38:39]} Nxe4 {[%clk 01:27:16]} {[%emt
00:01:43]} 12. Bxe4 {[%clk 00:36:45]} {[%emt 00:06:17]} dxe4 {[%clk 01:26:52]}
{[%emt 00:00:54]} 13. Nxe4 {[%clk 00:37:01]} {[%emt 00:00:13]} h6 {[%clk
01:24:51]} {[%emt 00:02:31]} 14. Bh4 {[%clk 00:30:45]} {[%emt 00:06:46]} exd4
{[%clk 01:24:39]} {[%emt 00:00:42]} 15. Nd6 {[%clk 00:30:20]} {[%emt 00:00:55]}
Rxe1+ {[%clk 01:22:49]} {[%emt 00:02:20]} 16. Qxe1 {[%clk 00:30:47]} {[%emt
00:00:03]} Qc7 {[%clk 01:22:45]} {[%emt 00:00:34]} 17. Qe7 {[%clk 00:28:15]}
{[%emt 00:03:01]} 1-0

[Event "Esbjerg Efterår 2024 - Esbjergmesterskabet"]
[Site "Esbjerg, Denmark"]
[Date "2024.10.20"]
[Round "7.6"]
[White "Saravana, Vedant Kumar"]
[Black "Desevac, Damir"]
[Result "1-0"]
[TimeControl "1.-3. 20 min + 5 sek, 4.-7. 90 min + 30 sek + 15 min efter 40 træk"]
[WhiteElo "2115"]
[BlackElo "1836"]

1. e4 {[%clk 01:30:55]} {[%emt 00:00:04]} e5 {[%clk 01:30:50]} {[%emt
00:00:11]} 2. Nf3 {[%clk 01:31:20]} {[%emt 00:00:06]} Nc6 {[%clk 01:31:06]}
{[%emt 00:00:14]} 3. Bc4 {[%clk 01:31:44]} {[%emt 00:00:05]} Be7 {[%clk
01:30:05]} {[%emt 00:01:30]} 4. c3 {[%clk 01:29:39]} {[%emt 00:02:35]} Nf6
{[%clk 01:28:41]} {[%emt 00:01:54]} 5. d3 {[%clk 01:28:39]} {[%emt 00:01:32]}
O-O {[%clk 01:26:55]} {[%emt 00:02:15]} 6. O-O {[%clk 01:26:11]} {[%emt
00:02:58]} d6 {[%clk 01:21:48]} {[%emt 00:05:37]} 7. Re1 {[%clk 01:25:51]}
{[%emt 00:00:50]} h6 {[%clk 01:20:30]} {[%emt 00:01:47]} 8. Nbd2 {[%clk
01:19:34]} {[%emt 00:06:48]} Be6 {[%clk 01:13:45]} {[%emt 00:07:14]} 9. Bb3
{[%clk 01:17:44]} {[%emt 00:02:21]} Bxb3 {[%clk 01:12:19]} {[%emt 00:01:56]} 10.
axb3 {[%clk 01:17:44]} {[%emt 00:00:30]} a5 {[%clk 01:11:04]} {[%emt 00:01:45]}
11. Nc4 {[%clk 01:14:03]} {[%emt 00:04:11]} b6 {[%clk 01:08:14]} {[%emt
00:03:20]} 12. Bd2 {[%clk 01:12:36]} {[%emt 00:01:58]} Nd7 {[%clk 01:05:23]}
{[%emt 00:03:20]} 13. Ne3 {[%clk 01:07:48]} {[%emt 00:05:18]} Nc5 {[%clk
01:01:37]} {[%emt 00:04:16]} 14. Bc1 {[%clk 00:52:07]} {[%emt 00:16:11]} Kh7
{[%clk 00:55:49]} {[%emt 00:06:16]} 15. d4 {[%clk 00:44:57]} {[%emt 00:07:41]}
exd4 {[%clk 00:50:43]} {[%emt 00:05:36]} 16. cxd4 {[%clk 00:45:05]} {[%emt
00:00:23]} Nxe4 {[%clk 00:46:03]} {[%emt 00:05:09]} 17. Qc2 {[%clk 00:44:43]}
{[%emt 00:00:49]} 1-0